bitfinex/quotes_SOLUSD_20250802
["timestamp","ask_amount","ask_price","bid_price","bid_amount"]
[1754172941407,70.97,159.0,158.97,0.72]
[1754172941778,17.49468397,158.99,158.96,0.06]
[1754172942185,0.71,158.98,158.96,0.06]
[1754172942725,0.71,158.98,158.96,5.75596116]
[1754172943517,0.71,158.98,158.96,0.06]
[1754172944018,97.40073688,158.97,158.96,0.06]
[1754172944381,98.11073688,158.97,158.96,0.06]
[1754172944899,102.30495934,158.97,158.96,0.06]
[1754172947296,107.58536518,158.97,158.96,0.06]
[1754172947496,112.30495934,158.97,158.96,0.06]
[1754172949440,117.58536518,158.97,158.96,0.06]
[1754172950609,112.30495934,158.97,158.96,0.06]
[1754172951729,102.30495934,158.97,158.96,0.06]
[1754172952230,4.66009175,158.97,158.96,0.78]
[1754172952600,30.66009175,158.97,158.96,0.78]
[1754172953000,4.66009175,158.97,158.96,0.78]
[1754172953199,44.28,158.99,158.96,0.78]
[1754172953200,44.28,158.99,158.96,6.47596116]
[1754172953399,44.28,158.99,158.97,6.41596116]
[1754172953620,32.06020966,158.98,158.96,0.06]
[1754172953819,75.63020966,158.97,158.96,0.06]
[1754172954000,76.34020966,158.97,158.96,0.06]
[1754172954323,56.93465434,158.97,158.96,0.06]
[1754172954623,70.1142485,158.97,158.96,0.78]
[1754172955010,4.66789792,158.97,158.96,0.78]
[1754172955199,30.66789792,158.97,158.96,0.78]
[1754172955404,26.0,158.97,158.96,6.47596116]
[1754172956404,34.88353007,158.97,158.96,0.78]
[1754172956644,30.67525017,158.97,158.96,0.78]
[1754172956807,34.88360486,158.97,158.96,0.78]
[1754172957138,30.67525017,158.97,158.96,0.78]
[1754172957626,34.88563739,158.97,158.96,0.78]
[1754172958202,34.88563739,158.97,158.96,6.47596116]
[1754172959701,8.88563739,158.97,158.96,0.78]
[1754172960126,4.67525017,158.97,158.96,0.78]
[1754172960431,8.88563739,158.97,158.96,0.78]
[1754172960637,4.67525017,158.97,158.96,0.78]
[1754172960820,8.88563739,158.97,158.96,0.78]
[1754172961005,8.88563739,158.97,158.96,0.06]
[1754172961202,4.67525017,158.97,158.96,0.06]
[1754172961406,53.30563739,158.97,158.96,0.06]
[1754172961714,53.30563739,158.97,158.96,6.44596116]
[1754172962441,4.67525017,158.97,158.96,6.44596116]
[1754172965719,61.26468397,159.01,158.96,0.75]
[1754172966042,8.89938564,159.0,158.98,5.69596116]
[1754172966343,4.68376832,158.99,158.97,6.38596116]
[1754172966843,4.68376832,158.98,158.96,5.75596116]
[1754172967036,8.89938564,158.98,158.96,5.75596116]
[1754172967237,4.68376832,158.97,158.96,5.75596116]
[1754172967828,66.72845229,158.97,158.96,0.06]
[1754172968014,70.94406961,158.97,158.96,0.06]
[1754172968217,76.64003077,158.97,158.96,0.06]
[1754172969239,81.92043661,158.97,158.96,0.06]
[1754172969441,85.20504881,158.97,158.96,0.06]
[1754172971132,80.52128049,158.97,158.96,0.06]
[1754172971340,85.21014717,158.97,158.96,0.06]
[1754172972621,48.48064513,158.95,158.94,0.06]
[1754172972956,101.88512913,158.95,158.94,0.06]
[1754172973118,102.60512913,158.95,158.94,0.06]
[1754172975748,107.88264697,158.95,158.94,0.06]
[1754172976137,117.88264697,158.95,158.94,0.06]
[1754172977856,112.60512913,158.95,158.84,0.69]
[1754172978027,22.48064513,158.88,158.84,0.69]
[1754172978221,76.28512913,158.88,158.84,0.69]
[1754172978533,77.00512913,158.88,158.84,0.69]
[1754172978732,71.30916797,158.88,158.84,0.69]
[1754172978941,77.00512913,158.88,158.84,0.69]
[1754172979960,80.16782234,158.88,158.84,0.69]
[1754172981240,74.47186118,158.88,158.84,0.69]
[1754172981559,80.16782234,158.88,158.84,0.69]
[1754172981741,85.118335,158.88,158.84,0.69]
[1754172981935,90.40493905,158.88,158.83,0.69]
[1754172982657,42.78468397,158.84,158.8,0.1]
[1754172982840,42.78468397,158.81,158.8,0.79]
[1754172983030,96.72916797,158.81,158.8,0.79]
[1754172983233,98.20951181,158.81,158.8,0.79]
[1754172984163,92.51355065,158.81,158.8,0.79]
[1754172984461,45.02,158.81,158.8,6.48596116]
[1754172984668,26.0,158.84,158.8,6.48596116]
[1754172984957,45.04,158.83,158.81,0.69]
[1754172986156,45.04,158.83,158.82,5.69596116]
[1754172986532,45.04,158.83,158.82,6.38596116]
[1754172986733,45.02,158.84,158.82,6.38596116]
[1754172986945,45.02,158.84,158.83,6.38596116]
[1754172987161,45.02,158.84,158.83,5.69596116]
[1754172987358,45.02,158.84,158.83,6.38596116]
[1754172987735,49.70608413,158.84,158.83,6.38596116]
[1754172988149,53.92272115,158.84,158.83,6.38596116]
[1754172988562,53.92210454,158.84,158.81,6.38596116]
[1754172988737,4.21663702,158.83,158.82,0.69]
[1754172988938,8.90248207,158.83,158.82,5.69596116]
[1754172989341,8.90248207,158.83,158.8,0.1]
[1754172989542,44.98,158.85,158.82,5.69596116]
[1754172989759,13.79064851,158.89,158.84,5.69596116]
[1754172989939,8.89855128,158.88,158.85,0.69]
[1754172990274,4.68357074,158.87,158.85,0.69]
[1754172990442,4.21498054,158.88,158.85,0.69]
[1754172991048,4.21498054,158.88,158.87,5.69596116]
[1754172991264,4.21498054,158.88,158.85,0.66]
[1754172991466,4.21498054,158.88,158.8,5.79596116]
[1754172991467,66.65966451,158.87,158.83,6.35596116]
[1754172991772,8.89824611,158.86,158.83,6.35596116]
[1754172991974,49.64326557,158.85,158.83,6.35596116]
[1754172992173,4.21498054,158.84,158.83,6.35596116]
[1754172992477,44.96,158.85,158.83,6.35596116]
[1754172992657,4.21453885,158.84,158.83,6.35596116]
[1754172993173,16.78468397,158.83,158.8,5.79596116]
[1754172993469,54.55751481,158.82,158.8,0.1]
[1754172993675,8.89671252,158.81,158.8,0.1]
[1754172994649,4.21453885,158.81,158.8,0.76]
[1754172995168,4.21453885,158.81,158.8,6.45596116]
[1754172995551,44.96,158.82,158.8,6.45596116]
[1754172995747,44.96,158.82,158.81,0.66]
[1754172996144,44.96,158.82,158.8,0.1]
[1754172996373,45.66,158.82,158.8,0.1]
[1754172996866,4.20939613,158.81,158.8,0.1]
[1754172997274,4.90939613,158.81,158.8,0.1]
[1754172997579,8.88947509,158.81,158.8,0.1]
[1754172998479,26.37415906,158.81,158.8,0.1]
[1754172998776,25.67415906,158.81,158.8,0.1]
[1754173001562,26.37415906,158.81,158.8,0.1]
[1754173002286,25.67415906,158.81,158.8,0.1]
[1754173003994,26.37415906,158.81,158.8,0.1]
[1754173005092,32.07012022,158.81,158.8,0.1]
[1754173006287,26.37415906,158.81,158.8,0.1]
[1754173006484,32.07012022,158.81,158.8,0.1]
[1754173008510,58.07012022,158.81,158.8,0.1]
[1754173008709,58.07012022,158.81,158.74,6.35596116]
[1754173008882,27.73413745,158.79,158.74,6.35596116]
[1754173009074,16.78468397,158.77,158.67,26.0]
[1754173009283,53.95695369,158.76,158.73,5.69596116]
[1754173009498,4.20939613,158.75,158.73,5.69596116]
[1754173009700,4.20939613,158.75,158.73,6.35596116]
[1754173010480,0.7,158.74,158.69,0.66]
[1754173010803,5.36865172,158.73,158.69,0.66]
[1754173010990,49.86865172,158.72,158.69,6.35596116]
[1754173011196,4.20939613,158.71,158.7,0.66]
[1754173011396,4.20939613,158.71,158.69,5.35596116]
[1754173011778,4.20939613,158.71,158.69,5.69596116]
[1754173012302,4.20939613,158.71,158.68,5.69596116]
[1754173012507,4.20939613,158.71,158.69,5.69596116]
[1754173013483,4.20939613,158.71,158.69,6.35596116]
[1754173014908,4.90939613,158.71,158.69,5.69596116]
[1754173015689,4.20939613,158.71,158.69,5.69596116]
[1754173015893,4.20939613,158.71,158.7,5.69596116]
[1754173016111,8.88005736,158.71,158.7,5.69596116]
[1754173016406,26.0,158.75,158.7,6.35596116]
[1754173016604,54.13800493,158.74,158.73,5.69596116]
[1754173017390,54.13800493,158.74,158.64,5.69596116]
[1754173017695,8.87800493,158.73,158.68,0.66]
[1754173017902,26.7,158.75,158.72,5.69596116]
[1754173018208,54.12358609,158.74,158.73,5.69596116]
[1754173018412,8.88358609,158.74,158.73,6.35596116]
[1754173018585,4.67497231,158.74,158.73,6.35596116]
[1754173018996,4.67497231,158.74,158.73,0.66]
[1754173019198,8.88692096,158.74,158.73,6.35596116]
[1754173021004,45.2,158.78,158.73,6.35596116]
[1754173021214,8.89524304,158.77,158.76,5.69596116]
[1754173021511,9.60524304,158.77,158.76,5.69596116]
[1754173021898,9.60524304,158.77,158.72,5.69596116]
[1754173022093,9.60524304,158.76,158.75,5.69596116]
[1754173022303,9.60786988,158.76,158.75,5.69596116]
[1754173024418,8.89786988,158.76,158.75,5.69596116]
[1754173025214,9.60786988,158.76,158.75,5.69596116]
[1754173025919,8.89786988,158.76,158.75,5.69596116]
[1754173026091,4.68399626,158.76,158.75,6.41596116]
[1754173026488,5.25349232,158.83,158.75,6.41596116]
[1754173026694,5.25349232,158.83,158.73,0.63000063]
[1754173026695,45.12,158.84,158.82,5.69596116]
[1754173026919,8.91365472,158.83,158.8,6.41596116]
[1754173027098,4.69201255,158.82,158.81,0.72]
[1754173027295,9.62365472,158.82,158.76,0.72]
[1754173027514,71.52833869,158.81,158.74,0.72]
[1754173027818,16.78468397,158.79,158.74,0.72]
[1754173028016,49.34164217,158.78,158.77,5.69596116]
[1754173028213,54.03253448,158.78,158.77,5.69596116]
[1754173028392,45.1,158.8,158.77,6.41596116]
[1754173028594,45.12,158.82,158.79,5.69596116]
[1754173028804,8.91326584,158.81,158.79,0.72]
[1754173029095,4.69191236,158.8,158.79,0.72]
[1754173029527,4.69191236,158.8,158.77,0.72]
[1754173029803,4.69179991,158.79,158.77,0.72]
[1754173030098,4.22098555,158.82,158.78,6.41596116]
[1754173030417,4.22098555,158.82,158.81,5.69596116]
[1754173030605,8.91372525,158.82,158.81,5.69596116]
[1754173031520,4.6927397,158.82,158.81,5.69596116]
[1754173031722,8.91372525,158.82,158.81,5.69596116]
[1754173032114,4.6927397,158.82,158.81,6.41596116]
[1754173034402,4.2237604,158.85,158.81,6.41596116]
[1754173034622,4.69450882,158.84,158.82,0.72]
[1754173034923,4.2237604,158.85,158.8,5.69596116]
[1754173035226,0.03,158.88,158.83,0.72]
[1754173035397,4.69477692,158.87,158.83,0.72]
[1754173035608,0.03,158.88,158.83,0.72]
[1754173035817,0.03,158.88,158.87,5.69596116]
[1754173036022,4.72501177,158.88,158.87,5.69596116]
[1754173036510,0.03,158.88,158.87,5.69596116]
[1754173036710,4.72346585,158.88,158.87,5.69596116]
[1754173037535,4.72346585,158.88,158.87,6.41596116]
[1754173037838,0.03,158.88,158.87,6.41596116]
[1754173038930,0.03,158.88,158.87,5.69596116]
[1754173039454,4.7158612,158.88,158.87,5.69596116]
[1754173040151,5.4258612,158.88,158.86,5.69596116]
[1754173040352,5.3958612,158.87,158.83,0.72]
[1754173040512,0.71,158.87,158.86,5.69596116]
[1754173040708,5.39444577,158.87,158.86,5.69596116]
[1754173042350,5.39402637,158.87,158.86,5.69596116]
[1754173044151,50.39402637,158.87,158.85,5.69596116]
[1754173044438,9.61331296,158.86,158.85,5.69596116]
[1754173045023,9.61331296,158.86,158.83,5.69596116]
[1754173045340,5.39402637,158.85,158.83,5.69596116]
[1754173045539,4.68402637,158.84,158.83,5.69596116]
[1754173045717,5.39402637,158.84,158.82,5.69596116]
[1754173046035,0.71,158.84,158.83,5.69596116]
[1754173046237,4.6818218,158.84,158.83,5.69596116]
[1754173046742,4.21928659,158.86,158.83,6.41596116]
[1754173046921,0.03,158.88,158.85,5.69596116]
[1754173047119,4.24364484,158.88,158.85,5.69596116]
[1754173047344,0.03,158.88,158.86,0.72]
[1754173047543,0.03,158.88,158.87,5.69596116]
[1754173047744,8.92337905,158.88,158.87,5.69596116]
[1754173047922,8.92337905,158.88,158.84,0.72]
[1754173048128,8.92337905,158.88,158.87,5.69596116]
[1754173048129,4.95258236,158.88,158.87,5.69596116]
[1754173048325,9.63264953,158.88,158.87,5.69596116]
[1754173050220,5.42006717,158.88,158.87,5.69596116]
[1754173050528,4.71006717,158.88,158.87,5.69596116]
[1754173050947,0.03,158.88,158.87,5.69596116]
[1754173051145,4.70843971,158.88,158.87,5.69596116]
[1754173051541,5.39843971,158.88,158.87,5.69596116]
[1754173052146,4.70843971,158.88,158.87,5.69596116]
[1754173054326,4.70843971,158.88,158.87,6.35596116]
[1754173054529,0.03,158.88,158.87,6.35596116]
[1754173058025,0.03,158.88,158.87,5.69596116]
[1754173059156,0.72,158.88,158.87,5.69596116]
[1754173060737,5.40278903,158.88,158.87,5.69596116]
[1754173061139,5.40249158,158.88,158.87,5.69596116]
[1754173062352,4.71249158,158.88,158.87,5.69596116]
[1754173062535,0.03,158.88,158.87,5.69596116]
[1754173063335,0.03,158.88,158.86,0.66]
[1754173063540,0.03,158.88,158.87,5.69596116]
[1754173063541,0.72,158.88,158.87,5.69596116]
[1754173063746,0.72,158.88,158.8,0.62972292]
[1754173063949,44.8,158.87,158.83,5.69596116]
[1754173064139,9.59426795,158.86,158.81,0.66]
[1754173064330,9.59426795,158.86,158.83,5.69596116]
[1754173064331,5.37714038,158.85,158.83,5.69596116]
[1754173064654,0.69,158.85,158.81,0.66]
[1754173065036,5.37671191,158.84,158.81,5.69596116]
[1754173065236,0.69,158.83,158.81,5.69596116]
[1754173065642,0.69,158.83,158.82,5.69596116]
[1754173065959,0.69,158.83,158.79,0.66]
[1754173065960,5.37644547,158.83,158.81,5.69596116]
[1754173066157,5.37629419,158.82,158.78,5.69596116]
[1754173066459,5.37567198,158.81,158.78,5.69596116]
[1754173066660,4.68563664,158.8,158.78,5.69596116]
[1754173066962,4.68666476,158.79,158.78,5.69596116]
[1754173070156,8.90938443,158.79,158.78,5.69596116]
[1754173070365,8.90938443,158.79,158.72,31.69596116]
[1754173070549,15.29534559,158.78,158.71,0.66]
[1754173070859,5.69596116,158.76,158.69,0.72]
[1754173071040,60.33534559,158.75,158.7,5.69596116]
[1754173071240,15.29534559,158.74,158.69,5.75596116]
[1754173071452,15.30214914,158.73,158.69,0.06]
[1754173071656,8.91618798,158.72,158.69,0.06]
[1754173071869,4.91271967,158.72,158.69,0.06]
[1754173072034,4.69246837,158.71,158.69,0.06]
[1754173072234,0.69,158.71,158.69,0.06]
[1754173072441,0.69,158.7,158.69,0.06]
[1754173073039,4.22271967,158.72,158.69,5.75596116]
[1754173073247,4.22271967,158.74,158.71,5.69596116]
[1754173073449,0.69,158.76,158.73,5.69596116]
[1754173073663,4.68530995,158.75,158.71,0.66]
[1754173073866,4.68533974,158.74,158.71,0.66]
[1754173074176,0.69,158.74,158.73,5.69596116]
[1754173074400,5.3725525,158.74,158.73,5.69596116]
[1754173074675,5.3725525,158.74,158.72,5.69596116]
[1754173074847,5.3725525,158.73,158.69,0.06]
[1754173075048,4.68199048,158.72,158.69,0.06]
[1754173075248,9.91208107,158.74,158.69,5.75596116]
[1754173075448,0.69,158.71,158.69,5.75596116]
[1754173075648,0.69,158.71,158.7,5.69596116]
[1754173076267,4.90611991,158.73,158.7,5.69596116]
[1754173076464,4.90611991,158.73,158.71,5.69596116]
[1754173076663,0.69,158.72,158.71,5.69596116]
[1754173076862,0.69,158.72,158.7,5.69596116]
[1754173077172,0.69,158.72,158.69,0.06]
[1754173077173,6.38596116,158.72,158.69,0.06]
[1754173077472,0.69,158.71,158.69,0.06]
[1754173077671,0.69,158.71,158.69,5.75596116]
[1754173077861,30.20545875,158.73,158.7,5.69596116]
[1754173078059,26.0,158.73,158.71,5.69596116]
[1754173078761,26.0,158.73,158.7,5.69596116]
[1754173079075,51.13596116,158.75,158.7,5.69596116]
[1754173079274,0.69,158.73,158.7,5.69596116]
[1754173079861,4.2017297,158.74,158.7,5.69596116]
[1754173080068,0.69,158.74,158.7,6.35596116]
[1754173080753,0.69,158.74,158.7,0.66]
[1754173080951,0.7,158.76,158.72,5.69596116]
[1754173081276,4.67043147,158.75,158.72,5.69596116]
[1754173081455,51.09596116,158.77,158.72,5.69596116]
[1754173081781,0.7,158.75,158.71,5.69596116]
[1754173081982,0.7,158.74,158.71,5.69596116]
[1754173082288,6.39596116,158.76,158.72,5.69596116]
[1754173082480,4.66873558,158.75,158.72,5.69596116]
[1754173082651,51.09596116,158.77,158.72,5.69596116]
[1754173082851,5.36843852,158.76,158.72,6.36596116]
[1754173083058,4.66843852,158.75,158.72,6.36596116]
[1754173083282,0.7,158.76,158.73,5.69596116]
[1754173083458,4.66795888,158.75,158.72,5.69596116]
[1754173083775,0.7,158.75,158.7,0.67]
[1754173083978,0.7,158.75,158.72,5.69596116]
[1754173085354,0.7,158.75,158.7,0.67]
[1754173085685,0.7,158.75,158.72,5.69596116]
[1754173090772,0.7,158.76,158.72,6.36596116]
[1754173090974,0.7,158.75,158.72,5.69596116]
[1754173091176,5.69596116,158.76,158.72,5.69596116]
[1754173091374,0.7,158.74,158.72,4.69596116]
[1754173092375,6.39596116,158.76,158.72,4.69596116]
[1754173092687,0.7,158.75,158.72,4.69596116]
[1754173093388,0.7,158.74,158.71,5.69596116]
[1754173093874,5.69596116,158.76,158.71,5.69596116]
[1754173094079,0.7,158.75,158.71,5.69596116]
[1754173094284,0.03,158.74,158.72,5.69596116]
[1754173095977,0.03,158.74,158.72,6.36596116]
[1754173097596,0.03,158.74,158.73,5.69596116]
[1754173097802,0.03,158.74,158.73,6.36596116]
[1754173098600,0.03,158.74,158.73,0.67]
[1754173099576,0.03,158.74,158.71,0.67]
[1754173099905,0.03,158.74,158.72,5.69596116]
[1754173100403,0.73,158.74,158.72,5.69596116]
[1754173100590,0.73,158.74,158.71,5.69596116]
[1754173100981,0.03,158.74,158.71,6.36596116]
[1754173101192,0.73,158.74,158.71,5.69596116]
[1754173101615,0.03,158.74,158.71,6.36596116]
[1754173101817,0.03,158.74,158.72,0.67]
[1754173102317,0.03,158.74,158.72,6.36596116]
[1754173104334,0.73,158.74,158.7,0.67]
[1754173104504,0.73,158.74,158.72,5.69596116]
[1754173105208,0.03,158.74,158.72,5.69596116]
[1754173106796,0.03,158.74,158.7,0.67]
[1754173107108,0.03,158.74,158.72,5.69596116]
[1754173107318,4.69082297,158.73,158.71,6.36596116]
[1754173107528,4.24300016,158.74,158.71,6.36596116]
[1754173107693,4.69139837,158.73,158.71,6.36596116]
[1754173107894,10.38705301,158.72,158.69,0.73]
[1754173108097,5.69596116,158.7,158.69,0.06]
[1754173108290,14.60005317,158.7,158.69,0.06]
[1754173108493,15.30005317,158.7,158.69,0.06]
[1754173110929,37.35098734,158.7,158.69,0.06]
[1754173111226,16.78468397,158.69,158.67,0.06]
[1754173111411,76.46473714,158.68,158.67,0.06]
[1754173111605,77.18473714,158.68,158.67,0.06]
[1754173112229,71.48877598,158.68,158.67,0.06]
[1754173112524,5.69596116,158.61,158.56,6.41596116]
[1754173112724,5.69596116,158.61,158.56,5.69596116]
[1754173112725,4.93300016,158.6,158.56,5.69596116]
[1754173112898,4.93300016,158.59,158.55,1.2953997]
[1754173113094,4.21300016,158.58,158.55,1.2953997]
[1754173113328,4.21300016,158.57,158.55,1.2953997]
[1754173113525,0.72,158.58,158.55,6.95136086]
[1754173113822,4.93300016,158.57,158.55,1.2553997]
[1754173114122,4.21300016,158.56,158.55,1.2553997]
[1754173114311,0.72,158.56,158.55,1.2553997]
[1754173114509,4.93300016,158.56,158.55,1.2553997]
[1754173114715,0.72,158.56,158.55,1.2553997]
[1754173114920,4.93300016,158.56,158.55,1.2553997]
[1754173116133,27.41364529,158.56,158.55,1.2553997]
[1754173116605,32.08596447,158.56,158.55,1.2553997]
[1754173116935,43.06754924,158.56,158.55,1.2553997]
[1754173117139,37.78192563,158.56,158.55,0.5353997]
[1754173117507,42.78468397,158.52,158.44,5.69596116]
[1754173117705,42.78468397,158.52,158.43,0.72]
[1754173117706,5.69596116,158.48,158.43,0.72]
[1754173117952,45.6,158.47,158.44,5.69596116]
[1754173118252,0.72,158.49,158.39,6.415961]
[1754173118534,0.72,158.49,158.45,0.72]
[1754173118535,51.41596116,158.48,158.45,0.72]
[1754173118831,52.13596116,158.48,158.43,6.41596116]
[1754173119036,52.13596116,158.48,158.44,0.72]
[1754173119218,5.24654871,158.55,158.41,0.72]
[1754173119219,46.46,158.47,158.41,0.72]
[1754173119400,5.69596116,158.46,158.42,5.69596116]
[1754173119600,6.41596116,158.46,158.42,6.41596116]
[1754173119924,52.15596116,158.46,158.42,6.41596116]
[1754173120234,52.15596116,158.46,158.42,0.72]
[1754173120235,45.74,158.46,158.42,0.72]
[1754173120434,5.69596116,158.47,158.43,0.72]
[1754173120622,52.17596116,158.46,158.42,5.69596116]
[1754173121025,51.45596116,158.46,158.43,0.72]
[1754173121234,45.76,158.46,158.43,0.72]
[1754173121616,45.76,158.46,158.42,5.69596116]
[1754173121818,42.78468397,158.49,158.43,0.72]
[1754173122119,94.24064513,158.49,158.44,5.69596116]
[1754173122442,94.24064513,158.49,158.45,0.72]
[1754173122606,0.72,158.53,158.47,5.69596116]
[1754173122803,45.76,158.52,158.48,0.72]
[1754173123032,16.78468397,158.52,158.49,0.72]
[1754173123539,5.69596116,158.5,158.45,0.72]
[1754173123742,6.41596116,158.49,158.45,0.72]
[1754173124038,5.69596116,158.47,158.43,6.41596116]
[1754173124239,6.41596116,158.48,158.44,0.72]
[1754173124428,5.69596116,158.48,158.44,5.69596116]
[1754173124628,45.8,158.49,158.46,5.69596116]
[1754173124834,63.36468397,158.52,158.47,0.72]
[1754173125040,69.06064513,158.52,158.48,0.72]
[1754173125247,45.86,158.52,158.49,0.72]
[1754173125551,51.55596116,158.52,158.49,0.72]
[1754173126028,45.86,158.52,158.49,0.72]
[1754173126232,5.69596116,158.53,158.5,0.72]
[1754173126724,5.69596116,158.54,158.5,0.72]
[1754173126927,23.20064513,158.54,158.5,0.72]
[1754173127130,5.69596116,158.53,158.5,0.72]
[1754173127326,6.41596116,158.53,158.48,6.41596116]
[1754173127528,6.41596116,158.53,158.49,0.72]
[1754173128028,45.86,158.55,158.51,5.69596116]
[1754173128232,45.86,158.55,158.52,6.41596116]
[1754173128541,5.69596116,158.57,158.53,0.72]
[1754173128847,6.41596116,158.57,158.53,0.72]
[1754173129212,5.69596116,158.56,158.52,5.69596116]
[1754173129566,6.41596116,158.55,158.51,5.69596116]
[1754173129853,5.69596116,158.53,158.48,6.41596116]
[1754173130165,0.72,158.52,158.48,6.41596116]
[1754173131153,0.72,158.52,158.48,0.72]
[1754173131532,0.72,158.52,158.49,5.69596116]
[1754173132053,22.48064513,158.5,158.45,0.72]
[1754173132235,0.72,158.49,158.45,6.41596116]
[1754173132562,0.72,158.49,158.44,5.69596116]
[1754173132563,0.72,158.48,158.44,5.69596116]
[1754173132861,0.72,158.48,158.44,6.41596116]
[1754173133660,0.72,158.48,158.44,0.72]
[1754173133961,0.72,158.48,158.44,6.41596116]
[1754173134526,0.72,158.48,158.44,0.72]
[1754173134753,0.72,158.48,158.44,6.41596116]
[1754173135255,0.72,158.48,158.45,5.69596116]
[1754173136641,0.72,158.48,158.45,6.41596116]
[1754173137158,5.69596116,158.49,158.45,6.41596116]
[1754173137343,6.41596116,158.49,158.45,6.41596116]
[1754173137540,77.51596116,158.5,158.46,6.41596116]
[1754173137736,77.51596116,158.5,158.46,5.69596116]
[1754173137940,77.51596116,158.5,158.47,0.72]
[1754173138156,71.82,158.5,158.47,0.72]
[1754173138362,46.54,158.5,158.46,5.69596116]
[1754173138658,46.54,158.5,158.46,6.41596116]
[1754173139435,4.15360861,158.49,158.46,6.41596116]
[1754173139856,46.54,158.5,158.46,6.41596116]
[1754173140256,4.15306408,158.49,158.46,6.41596116]
[1754173140458,4.15306408,158.49,158.4,11.39192316]
[1754173140459,4.15306408,158.49,158.47,6.41596116]
[1754173140640,45.82,158.5,158.48,0.72]
[1754173140955,0.72,158.56,158.49,5.69596116]
[1754173141156,72.74,158.56,158.52,5.69596116]
[1754173141362,4.15518853,158.55,158.53,0.72]
[1754173141547,6.40596116,158.58,158.53,0.72]
[1754173141732,46.02,158.57,158.54,5.69596116]
[1754173141938,4.15711744,158.56,158.54,5.69596116]
[1754173143139,4.15711744,158.56,158.53,6.41596116]
[1754173144265,4.15711744,158.56,158.46,6.32703508]
[1754173144467,4.15711744,158.56,158.54,5.69596116]
[1754173145033,4.15711744,158.56,158.55,5.69596116]
[1754173145266,4.15711744,158.58,158.55,0.72]
[1754173145450,4.15711744,158.58,158.54,5.69596116]
[1754173145451,0.71,158.57,158.54,5.69596116]
[1754173145976,0.71,158.57,158.54,6.41596116]
[1754173147540,0.71,158.57,158.54,5.69596116]
[1754173149040,16.78468397,158.58,158.55,6.41596116]
[1754173149745,32.40596116,158.59,158.55,6.41596116]
[1754173149940,32.40596116,158.59,158.48,6.3269556]
[1754173149941,0.71,158.58,158.53,0.72]
[1754173150159,0.71,158.58,158.55,5.69596116]
[1754173150355,5.19762233,158.58,158.55,0.72]
[1754173150569,37.60358349,158.59,158.55,0.72]
[1754173151268,4.65790133,158.58,158.55,0.72]
[1754173151571,31.19762233,158.59,158.56,0.72]
[1754173151771,26.0,158.59,158.56,0.72]
[1754173151976,26.0,158.59,158.57,5.69596116]
[1754173152169,26.0,158.59,158.58,0.72]
[1754173152469,4.66424193,158.59,158.58,0.72]
[1754173153370,9.86186426,158.59,158.58,0.72]
[1754173153671,4.66424193,158.59,158.56,0.72]
[1754173153870,57.56358349,158.6,158.56,6.41596116]
[1754173154174,4.66782002,158.59,158.56,6.41596116]
[1754173154364,51.86762233,158.6,158.56,6.41596116]
[1754173154673,4.67225147,158.59,158.56,6.41596116]
[1754173154848,51.86762233,158.6,158.56,6.41596116]
[1754173155047,4.67225453,158.59,158.56,6.41596116]
[1754173155363,4.67724148,158.58,158.56,6.41596116]
[1754173155559,5.19762233,158.58,158.56,6.41596116]
[1754173155877,5.19762233,158.59,158.56,0.72]
[1754173156058,4.67724285,158.58,158.56,0.72]
[1754173156373,0.71,158.58,158.54,5.69596116]
[1754173156570,5.19762233,158.56,158.53,5.69596116]
[1754173156865,5.19762233,158.56,158.54,0.72]
[1754173157482,14.09939812,158.55,158.52,6.41596116]
[1754173157683,4.21662866,158.54,158.48,5.69596116]
[1754173157975,4.21662866,158.53,158.51,5.69596116]
[1754173158185,4.21662866,158.52,158.51,5.69596116]
[1754173158860,4.21662866,158.52,158.51,6.41596116]
[1754173159455,5.19762233,158.57,158.51,6.41596116]
[1754173159655,4.21568707,158.56,158.52,1.35083522]